[Event "FRA-ch Teams Top 16-A 2022"]
[Site "Chartres"]
[Date "2022.06.14"]
[Round "6.29"]
[White "Eden, James"]
[Black "Bellahcene, Bilel"]
[Result "0-1"]
[ECO "C17"]
[WhiteElo "2273"]
[BlackElo "2521"]
[Annotator "RC"]
[PlyCount "114"]
[EventDate "2022.06.09"]
[EventType "team-tourn"]
[EventCountry "FRA"]
[SourceTitle "playchess.com"]
[Source "ChessBase"]
[SourceQuality "1"]
[TimeControl "40/5400+30:1800+30"]

1. e4 {[%emt 0:01:47]} e6 {[%emt 0:12:42]} 2. d4 {[%emt 0:02:22]} d5 {[%emt 0:00:03]} 3. Nc3 {[%emt 0:01:00]} Bb4 {[%emt 0:00:22]} 4. e5 {[%emt 0:00:29]} c5 {[%emt 0:00:16]} 5. Bd2 {[%emt 0:01:01]} Ne7 {[%emt 0:00:03]} 6. Nb5 {[%emt 0:00:13]} Bxd2+ {[%emt 0:00:03]} 7. Qxd2 {[%emt 0:00:08]} O-O {[%emt 0:00:03]} 8. f4 {[%emt 0:00:34]} a6 {[%emt 0:00:05]} 9. Nc3 {[%emt 0:05:46]} cxd4 {[%emt 0:00:09]} 10. Nce2 {[%emt 0:00:09]} Nbc6 {[%emt 0:00:02]} 11. Nf3 {[%emt 0:00:13]} Nf5 {[%emt 0:01:18]} 12. Nexd4 {[%emt 0:00:19]} Nfxd4 {[%emt 0:00:15]} 13. Nxd4 {[%emt 0:00:08]} f6 {[%emt 0:00:20]} 14. Nf3 {[%emt 0:09:04]} fxe5 {[%emt 0:03:42]} 15. fxe5 {[%emt 0:00:10]} Qc7 {[%emt 0:02:11]} 16. Qc3 {[%emt 0:02:10]} Rf4 {[%emt 0:06:56]} 17. Bd3 {[%emt 0:05:14]} Bd7 {[%emt 0:01:03]} 18. O-O-O {[%emt 0:06:07]} Raf8 {[%emt 0:00:39]} 19. Rhf1 {[%emt 0:04:56]} Qd8 {[%emt 0:02:15]} 20. Qe1 {[%emt 0:09:10]} Nb4 {[%emt 0:13:14]} 21. Kb1 {[%emt 0:05:06]} Nxd3 {[%emt 0:00:58]} 22. cxd3 {[%emt 0:00:10]} Be8 {[%emt 0:00:25]} 23. Qe3 {[%emt 0:07:50]} d4 {[%emt 0:09:01]} 24. Qe2 {[%emt 0:02:09]} Bh5 {[%emt 0:00:32]} 25. Rf2 {[%emt 0:02:06]} Qd5 {[%emt 0:02:15]} 26. Rdf1 {[%emt 0:00:15]} h6 {[%emt 0:01:10]} 27. h3 {[%emt 0:02:01]} a5 {[%emt 0:02:07]} 28. b3 {[%emt 0:06:30]} Bg6 {[%emt 0:06:04]} 29. Kb2 {[%emt 0:01:16]} R4f7 {[%emt 0:05:12]} 30. Qc2 {[%emt 0:01:25]} b5 {[%emt 0:06:55]} 31. Qd2 {[%emt 0:04:36]} b4 {[%emt 0:03:13]} 32. Qc2 {[%emt 0:01:37]} Bh5 {[%emt 0:00:13]} 33. Qe2 {[%emt 0:03:43]} Bxf3 {[%emt 0:07:20]} 34. Rxf3 {[%emt 0:02:36]} Rxf3 {[%emt 0:00:04]} 35. Rxf3 {[%emt 0:03:29]} Rc8 {[%emt 0:00:16]} 36. Rf1 {[%emt 0:01:27]} a4 {[%emt 0:01:17]} 37. bxa4 {[%emt 0:02:09]} Qc6 {[%emt 0:00:07]} 38. Kb1 {[%emt 0:05:18]} Qxa4 {[%emt 0:03:00]} 39. Rc1 {[%emt 0:02:09]} Rc3 {[%emt 0:00:30]} 40. Rxc3 {[%emt 0:02:34]} bxc3 {[%emt 0:00:09]} 41. Kc1 {[%emt 0:01:46]} Qa3+ {[%emt 0:01:13]} 42. Kd1 {[%emt 0:07:14]} Qa4+ {[%emt 0:01:05]} 43. Kc1 {[%emt 0:00:29]} Qb5 {[%emt 0:00:02]} 44. g4 {[%emt 0:02:36]} g5 {[%emt 0:00:57]} 45. Qc2 {[%emt 0:05:34]} Qxe5 {[%emt 0:00:24]} 46. a4 {[%emt 0:00:08]} Kf7 {[%emt 0:04:51]} 47. Qg2 {[%emt 0:01:10]} Qb8 {[%emt 0:02:51]} 48. Qc2 {[%emt 0:07:06]} Ke7 {[%emt 0:01:02]} 49. a5 {[%emt 0:02:51]} Qe5 {[%emt 0:03:19]} 50. Qg2 {[%emt 0:01:15]} Qb5 {[%emt 0:02:27]} 51. Qa2 {[%emt 0:00:38]} Qxd3 {[%emt 0:04:18]} 52. a6 {[%emt 0:00:17]} Qe3+ {[%emt 0:00:47]} 53. Kc2 {[%emt 0:01:00]} Qe2+ {[%emt 0:02:35]} 54. Kb3 {[%emt 0:00:07]} c2 {[%emt 0:00:27]} 55. Qa3+ {[%emt 0:01:36]} Kf7 {[%emt 0:00:13]} 56. Qc5 {[%emt 0:00:28]} c1=Q {[%emt 0:01:28]} 57. Qxc1 {[%emt 0:00:12]} Qb5+ {[%emt 0:00:01]} 0-1

[Event "FRA-ch Teams Top 16-A 2022"]
[Site "Chartres"]
[Date "2022.06.14"]
[Round "6.30"]
[White "Rodshtein, Maxim"]
[Black "Da Silva, Quentin"]
[Result "1-0"]
[ECO "E90"]
[WhiteElo "2588"]
[BlackElo "2171"]
[Annotator "RC"]
[PlyCount "67"]
[EventDate "2022.06.09"]
[EventType "team-tourn"]
[EventCountry "FRA"]
[SourceTitle "playchess.com"]
[Source "ChessBase"]
[SourceQuality "1"]
[TimeControl "40/5400+30:1800+30"]

1. d4 {[%emt 0:00:08]} Nf6 {[%emt 0:00:17]} 2. c4 {[%emt 0:00:09]} g6 {[%emt 0:00:19]} 3. Nc3 {[%emt 0:00:47]} Bg7 {[%emt 0:00:23]} 4. e4 {[%emt 0:00:14]} d6 {[%emt 0:00:15]} 5. h3 {[%emt 0:00:33]} O-O {[%emt 0:01:25]} 6. Be3 {[%emt 0:00:11]} e5 {[%emt 0:02:18]} 7. d5 {[%emt 0:00:13]} Na6 {[%emt 0:02:08]} 8. Nf3 {[%emt 0:02:09]} Nh5 {[%emt 0:16:01]} 9. g3 {[%emt 0:01:08]} f5 {[%emt 0:08:42]} 10. exf5 {[%emt 1:29:58]} gxf5 {[%emt 0:00:57]} 11. Ng5 {[%emt 0:00:30]} Nf6 {[%emt 1:03:15]} 12. Qd2 {[%emt 0:00:30]} h6 {[%emt 0:00:00]} 13. Nf3 {[%emt 0:00:00]} Kh7 {[%emt 0:00:00]} 14. O-O-O {[%emt 0:00:00]} b6 {[%emt 0:00:00]} 15. Be2 {[%emt 0:00:00]} Nc5 {[%emt 0:00:00]} 16. Qc2 {[%emt 0:00:00]} Nfe4 {[%emt 0:00:00]} 17. Nxe4 {[%emt 0:00:00]} Nxe4 {[%emt 0:00:00]} 18. g4 {[%emt 0:00:00]} Nc5 {[%emt 0:00:00]} 19. Rhg1 {[%emt 0:00:00]} e4 {[%emt 0:00:00]} 20. gxf5 {[%emt 0:00:00]} Bxf5 {[%emt 0:00:00]} 21. Nd4 {[%emt 0:00:00]} Qf6 {[%emt 0:00:00]} 22. Nxf5 {[%emt 0:00:00]} Qxf5 {[%emt 0:00:00]} 23. b4 {[%emt 0:00:00]} Nb7 {[%emt 0:00:00]} 24. Bg4 {[%emt 0:00:00]} Qe5 {[%emt 0:00:00]} 25. Bd4 {[%emt 0:00:00]} Qf4+ {[%emt 0:00:00]} 26. Be3 {[%emt 0:00:00]} Qe5 {[%emt 0:00:00]} 27. Be6 {[%emt 0:00:00]} Bf6 {[%emt 0:02:49]} 28. Rd4 {[%emt 0:00:57]} a5 {[%emt 0:03:48]} 29. Rxe4 {[%emt 0:01:33]} Qa1+ {[%emt 0:00:22]} 30. Kd2 {[%emt 0:00:07]} Qb2 {[%emt 0:01:33]} 31. Bf5+ {[%emt 0:01:08]} Kh8 {[%emt 0:00:19]} 32. Qxb2 {[%emt 0:00:08]} Bxb2 {[%emt 0:00:09]} 33. Rh4 {[%emt 0:00:25]} Rf6 {[%emt 0:01:14]} 34. Bxh6 {[%emt 0:00:22]} 1-0

[Event "FRA-ch Teams Top 16-A 2022"]
[Site "Chartres"]
[Date "2022.06.14"]
[Round "6.31"]
[White "Caille, Hugo"]
[Black "Le Roux, Jean-Pierre"]
[Result "0-1"]
[ECO "B08"]
[WhiteElo "2177"]
[BlackElo "2513"]
[Annotator "RC"]
[PlyCount "102"]
[EventDate "2022.06.09"]
[EventType "team-tourn"]
[EventCountry "FRA"]
[SourceTitle "playchess.com"]
[Source "ChessBase"]
[SourceQuality "1"]
[TimeControl "40/5400+30:1800+30"]

1. Nf3 {[%emt 0:00:08]} g6 {[%emt 0:01:20]} 2. e4 {[%emt 0:00:33]} Bg7 {[%emt 0:00:06]} 3. d4 {[%emt 0:00:16]} d6 {[%emt 0:00:42]} 4. Nc3 {[%emt 0:00:26]} Nf6 {[%emt 0:00:41]} 5. Be2 {[%emt 0:00:22]} O-O {[%emt 0:00:50]} 6. O-O {[%emt 0:00:15]} a6 {[%emt 0:00:49]} 7. a4 {[%emt 0:00:54]} c6 {[%emt 0:09:56]} 8. h3 {[%emt 0:05:51]} Qc7 {[%emt 0:06:35]} 9. a5 {[%emt 0:06:25]} Nbd7 {[%emt 0:10:16]} 10. Be3 {[%emt 0:03:51]} Rb8 {[%emt 0:03:48]} 11. Qc1 {[%emt 0:15:37]} b5 {[%emt 0:19:39]} 12. axb6 {[%emt 0:07:14]} Rxb6 {[%emt 0:00:31]} 13. d5 {[%emt 0:08:43]} Rb4 {[%emt 0:06:22]} 14. Bxa6 {[%emt 0:13:13]} Nxe4 {[%emt 0:03:33]} 15. Nxe4 {[%emt 0:04:09]} Rxe4 {[%emt 0:01:59]} 16. Bd3 {[%emt 0:02:17]} Rb4 {[%emt 0:03:08]} 17. c3 {[%emt 0:00:05]} Rb8 {[%emt 0:01:39]} 18. dxc6 {[%emt 0:06:36]} Qxc6 {[%emt 0:00:19]} 19. Nd4 {[%emt 0:00:54]} Qb7 {[%emt 0:09:06]} 20. b4 {[%emt 0:00:23]} Ne5 {[%emt 0:06:54]} 21. Be2 {[%emt 0:00:31]} Bd7 {[%emt 0:01:10]} 22. f4 {[%emt 0:02:05]} Nc6 {[%emt 0:00:34]} 23. Bf3 {[%emt 0:00:35]} Nxd4 {[%emt 0:01:53]} 24. Bxd4 {[%emt 0:05:44]} Bxd4+ {[%emt 0:00:09]} 25. cxd4 {[%emt 0:00:25]} Qxb4 {[%emt 0:00:06]} 26. Qe3 {[%emt 0:00:07]} Rfe8 {[%emt 0:06:14]} 27. Ra7 {[%emt 0:00:22]} Be6 {[%emt 0:02:50]} 28. d5 {[%emt 0:01:15]} Bf5 {[%emt 0:01:04]} 29. g4 {[%emt 0:06:26]} Bc2 {[%emt 0:00:08]} 30. Rf2 {[%emt 0:00:25]} Rbc8 {[%emt 0:02:04]} 31. Rxe7 {[%emt 0:00:51]} Ba4 {[%emt 0:00:57]} 32. f5 {[%emt 0:03:11]} Rxe7 {[%emt 0:00:17]} 33. Qxe7 {[%emt 0:00:07]} Qf4 {[%emt 0:00:28]} 34. Kg2 {[%emt 0:00:28]} Re8 {[%emt 0:00:37]} 35. Qf6 {[%emt 0:01:51]} Bb3 {[%emt 0:00:25]} 36. h4 {[%emt 0:02:44]} Re3 {[%emt 0:00:46]} 37. Qd8+ {[%emt 0:00:08]} Kg7 {[%emt 0:00:08]} 38. f6+ {[%emt 0:00:03]} Qxf6 {[%emt 0:00:47]} 39. Qxf6+ {[%emt 0:03:56]} Kxf6 {[%emt 0:00:04]} 40. Bd1+ {[%emt 0:00:17]} Ke7 {[%emt 0:00:58]} 41. Bxb3 {[%emt 0:30:14]} Rxb3 {[%emt 0:30:04]} 42. Re2+ {[%emt 0:00:00]} Kf8 {[%emt 0:00:00]} 43. Ra2 {[%emt 0:00:00]} Rd3 {[%emt 0:00:00]} 44. Ra5 {[%emt 0:00:00]} h6 {[%emt 0:00:00]} 45. Kf2 {[%emt 0:00:00]} g5 {[%emt 0:00:00]} 46. h5 {[%emt 0:00:00]} Ke7 {[%emt 0:00:00]} 47. Ke2 {[%emt 0:00:00]} Rd4 {[%emt 0:00:00]} 48. Ke3 {[%emt 0:00:00]} Rxg4 {[%emt 0:00:00]} 49. Ra7+ {[%emt 0:00:00]} Kf6 {[%emt 0:00:00]} 50. Rd7 {[%emt 0:00:00]} Ke5 {[%emt 0:00:00]} 51. Rxf7 {[%emt 0:00:00]} Rh4 {[%emt 0:00:00]} 0-1

[Event "FRA-ch Teams Top 16-A 2022"]
[Site "Chartres"]
[Date "2022.06.14"]
[Round "6.32"]
[White "Maisuradze, Nino"]
[Black "Afraoui, Solenn"]
[Result "1-0"]
[ECO "B23"]
[WhiteElo "2207"]
[BlackElo "1945"]
[Annotator "NA RC"]
[PlyCount "111"]
[EventDate "2022.06.09"]
[EventType "team-tourn"]
[EventCountry "FRA"]
[SourceTitle "playchess.com"]
[Source "ChessBase"]
[SourceQuality "1"]
[TimeControl "40/5400+30:1800+30"]

1. e4 {[%emt 0:00:03]} c5 {[%emt 0:00:13]} 2. Nc3 {[%emt 0:00:05]} a6 {[%emt 0:00:17]} 3. g3 {[%emt 0:03:59]} b5 {[%emt 0:00:23]} 4. Bg2 {[%emt 0:00:18]} Bb7 {[%emt 0:00:07]} 5. d3 {[%emt 0:00:37]} e6 {[%emt 0:00:53]} 6. Nh3 {[%emt 0:00:38]} Nf6 {[%emt 0:01:53]} 7. O-O {[%emt 0:01:14]} d6 {[%emt 0:02:37]} 8. f4 {[%emt 0:00:21]} b4 {[%emt 0:03:56]} 9. Nb1 {[%emt 0:07:08]} Be7 {[%emt 0:10:45]} 10. Be3 {[%emt 0:08:10]} Nc6 {[%emt 0:06:02]} 11. Nd2 {[%emt 0:00:29]} Nd7 {[%emt 0:02:00]} 12. Nc4 {[%emt 0:08:06]} Nb6 {[%emt 0:06:52]} 13. Nxb6 {[%emt 0:03:28]} Qxb6 {[%emt 0:00:06]} 14. a3 {[%emt 0:04:40]} a5 {[%emt 0:17:58]} 15. axb4 {[%emt 0:09:36]} axb4 {[%emt 0:00:48]} 16. Rxa8+ {[%emt 0:00:07]} Bxa8 {[%emt 0:00:04]} 17. f5 {[%emt 0:17:02]} e5 {[%emt 0:14:02]} 18. Qg4 {[%emt 0:06:45]} Bf6 {[%emt 0:02:09]} 19. Qh5 {[%emt 0:04:40]} Qd8 {[%emt 0:10:55]} 20. g4 {[%emt 0:02:39]} g6 {[%emt 0:06:59]} 21. Qh6 {[%emt 0:00:17]} Kd7 {[%emt 0:07:47]} 22. g5 {[%emt 0:01:39]} Be7 {[%emt 0:00:20]} 23. fxg6 {[%emt 0:05:15]} fxg6 {[%emt 0:00:29]} 24. Rf7 {[%emt 0:00:35]} Qg8 {[%emt 0:02:50]} 25. Rf2 {[%emt 0:07:23]} Kc7 {[%emt 0:00:54]} 26. b3 {[%emt 0:00:41]} Bb7 {[%emt 0:00:33]} 27. Rf1 {[%emt 0:02:29]} Bc8 {[%emt 0:00:15]} 28. Nf2 {[%emt 0:00:19]} Qf8 {[%emt 0:01:09]} 29. Qh4 {[%emt 0:00:44]} Qg7 {[%emt 0:00:33]} 30. Ng4 {[%emt 0:01:08]} Bxg4 {[%emt 0:00:09]} 31. Qxg4 {[%emt 0:00:02]} Rf8 {[%emt 0:00:27]} 32. Ra1 {[%emt 0:01:21]} Qg8 {[%emt 0:00:54]} 33. h4 {[%emt 0:02:35]} Ra8 {[%emt 0:00:16]} 34. Rf1 {[%emt 0:00:23]} Rf8 {[%emt 0:00:09]} 35. Rc1 {[%emt 0:02:07]} Qf7 {[%emt 0:01:01]} 36. Ra1 {[%emt 0:00:05]} Qg8 {[%emt 0:00:23]} 37. Bh3 {[%emt 0:00:05]} Rd8 {[%emt 0:00:30]} 38. Rf1 {[%emt 0:00:39]} Kb6 {[%emt 0:00:57]} 39. Qe6 {[%emt 0:01:04]} Qxe6 {[%emt 0:00:44]} 40. Bxe6 {[%emt 0:00:02]} Re8 {[%emt 0:00:34]} 41. Bd5 {[%emt 0:05:12]} Nd8 {[%emt 0:05:15]} 42. Kg2 {[%emt 0:02:27]} Rh8 {[%emt 0:10:57]} 43. Kg3 {[%emt 0:00:44]} Kc7 {[%emt 0:02:05]} 44. h5 {[%emt 0:02:56]} Kd7 {[%emt 0:06:51]} 45. Rh1 {[%emt 0:00:53]} Rf8 {[%emt 0:04:57]} 46. hxg6 {[%emt 0:00:46]} hxg6 {[%emt 0:00:05]} 47. Rh6 {[%emt 0:00:27]} Ne6 {[%emt 0:02:20]} 48. Rxg6 {[%emt 0:01:53]} Nf4 {[%emt 0:00:41]} 49. Bxf4 {[%emt 0:00:15]} Rxf4 {[%emt 0:00:15]} 50. Rg7 {[%emt 0:01:45]} Ke8 {[%emt 0:01:16]} 51. g6 {[%emt 0:00:36]} Bf8 {[%emt 0:00:47]} 52. Bc6+ {[%emt 0:02:45]} Kd8 {[%emt 0:00:13]} 53. Rd7+ {[%emt 0:01:10]} Kc8 {[%emt 0:00:35]} 54. g7 {[%emt 0:01:08]} Bxg7 {[%emt 0:00:28]} 55. Rxg7 {[%emt 0:00:03]} Rf1 {[%emt 0:00:11]} 56. Rd7 {[%emt 0:00:52]} 1-0

[Event "FRA-ch Teams Top 16-A 2022"]
[Site "Chartres"]
[Date "2022.06.15"]
[Round "7.1"]
[White "Bacrot, Etienne"]
[Black "Parligras, Mircea-Emilian"]
[Result "1-0"]
[ECO "C67"]
[WhiteElo "2638"]
[BlackElo "2583"]
[Annotator "TA"]
[PlyCount "91"]
[EventDate "2022.06.09"]
[EventType "team-tourn"]
[EventCountry "FRA"]
[SourceTitle "playchess.com"]
[Source "ChessBase"]
[SourceQuality "1"]
[TimeControl "40/5400+30:1800+30"]

{[%evp 18,91,12,7,31,7,17,14,21,5,17,6,0,0,0,0,23,0,0,0,0,0,0,0,0,0,0,0,0,0,4,0,44,0,0,0,11,11,12,13,17,19,12,30,28,14,19,15,141,57,50,51,51,9,9,12,85,12,695,667,1063,1062,1041,1023,987,815,6111,7606,5133,5708,5089,4185,29968,29969,4702,4626]} 1. e4 {[%emt 0:13:18]} e5 {[%emt 0:00:05]} 2. Nf3 {[%emt 0:00:37]} Nc6 {[%emt 0:00:08]} 3. Bb5 {[%emt 0:00:04]} Nf6 {[%emt 0:00:11]} 4. O-O {[%emt 0:00:04]} Nxe4 {[%emt 0:00:09]} 5. d4 {[%emt 0:00:05][%cal Bd2d4,Bd4e5][%mdl 32]} Nd6 {[%emt 0:00:17]} 6. Bxc6 {[%emt 0:00:05]} dxc6 {[%emt 0:00:10]} 7. dxe5 {[%emt 0:00:04]} Nf5 {[%emt 0:00:09]} 8. Qxd8+ {[%emt 0:00:05]} Kxd8 {[%emt 0:00:08]} 9. h3 {[%emt 0:00:04]} Ke8 {[%emt 0:01:43]} 10. Nc3 {[%emt 0:00:44]} h5 {[%emt 0:00:11] C67: Ruy Lopez: Berlin Defence: 4 0-0 Nxe4.} 11. Bf4 {[%emt 0:00:37]} Be7 {[%emt 0:04:54]} 12. Rad1 {[%emt 0:00:54]} Be6 {[%emt 0:00:10] The position is equal.} 13. Ng5 {[%emt 0:00:44]} Rh6 {[%emt 0:00:26]} 14. Rfe1 {[%emt 0:00:57]} Bb4 {[%emt 0:04:44]} 15. a3 {[%emt 0:00:32] 15.g4 is not played anymore.} Bxc3 {[%emt 0:00:39]} 16. bxc3 {[%emt 0:00:06]} Ne7 {[%emt 0:10:20] [#]} 17. Ne4 $1 $146 {[%emt 0:13:36][%mdl 8] A relevant novelty.} (17. Nf3 $5 {[%cal Rf4h6]} Rh8 18. Nd4 $11) ({Predecessor:} 17. Nf3 Rh8 18. Nd4 Nd5 19. Bg5 Nxc3 20. Rd3 Na4 21. f4 Nc5 22. Rc3 Na4 23. Rg3 {½-½ (43) Topalov,V (2749)-Radjabov,T (2748) Shamkir 2018}) 17... Rg6 {[%emt 0:01:53]} 18. h4 {[%emt 0:00:12]} Bd5 {[%emt 0:16:29]} 19. Ng3 {[%emt 0:12:11]} Rg4 {[%emt 0:01:33][%csl LRf4,LRh4]} 20. Bg5 {[%emt 0:00:05]} g6 {[%emt 0:02:40]} 21. Rd4 {[%emt 0:00:06]} Rxd4 {[%emt 0:05:44]} 22. cxd4 {[%emt 0:00:10]} a5 {[%emt 0:07:18]} 23. f3 {[%emt 0:05:52]} b5 {[%emt 0:10:54]} 24. c3 {[%emt 0:15:13]} Be6 {[%emt 0:18:09]} 25. Bxe7 {[%emt 0:03:27]} (25. Ne4 $5 {[%cal Re4f6]}) 25... Kxe7 $14 {[%emt 0:00:03][%mdl 4096] Endgame KRB-KRN} 26. Ne4 {[%emt 0:00:07]} b4 {[%emt 0:06:51]} 27. cxb4 {[%emt 0:00:27]} axb4 {[%emt 0:00:04]} 28. axb4 {[%emt 0:00:04]} Rb8 {[%emt 0:00:21]} 29. Rb1 {[%emt 0:01:08]} Rd8 {[%emt 0:00:03]} 30. Rd1 {[%emt 0:03:18]} Rb8 {[%emt 0:00:04]} 31. Kf2 {[%emt 0:00:11]} Rxb4 {[%emt 0:00:06]} 32. Ke3 {[%emt 0:00:04]} Bf5 {[%emt 0:05:36]} (32... Bd5 $11 {remains equal.}) 33. Rc1 {[%emt 0:02:58]} (33. Nf6 $1 $16) 33... Bxe4 {[%emt 0:00:31]} 34. Kxe4 {[%emt 0:00:40] KR-KR} Kd7 {[%emt 0:00:16]} 35. g4 {[%emt 0:00:48]} hxg4 $1 {[%emt 0:02:09]} 36. fxg4 {[%emt 0:00:23][%cal Bf3g4,Bg4h5,Bh5h6][%mdl 32] aiming for h5.} Rb2 {[%emt 0:00:06] [#]} 37. Rh1 {[%emt 0:01:27]} (37. Kf4 $1 $16) 37... Ke7 $2 {[%emt 0:01:06][%mdl 8192] [#] A mistake that costs the game.} (37... c5 $11) 38. h5 $1 $18 {[%emt 0:00:41]} gxh5 {[%emt 0:00:40]} 39. gxh5 {[%emt 0:00:04] h6 would kill now.} Kf8 {[%emt 0:00:23]} 40. h6 {[%emt 0:07:25] White wants to mate with h7.} Kg8 {[%emt 0:00:04]} 41. Rc1 {[%emt 0:44:03]} Rb6 {[%emt 0:32:25]} 42. Rg1+ {[%emt 0:03:35]} Kh7 {[%emt 0:00:12]} 43. Rg7+ {[%emt 0:00:29]} Kxh6 {[%emt 0:00:05]} 44. Rxf7 {[%emt 0:00:05]} Rb7 {[%emt 0:00:00]} 45. Kf5 {[%emt 0:00:00]} Rb1 {[%emt 0:00:00]} 46. Rf6+ {[%emt 0:00:00] Weighted Error Value: White=0.13 (very precise) /Black=0.61} 1-0

[Event "FRA-ch Teams Top 16-A 2022"]
[Site "Chartres"]
[Date "2022.06.15"]
[Round "7.2"]
[White "Abasov, Nijat"]
[Black "Ragger, Markus"]
[Result "1/2-1/2"]
[WhiteElo "2635"]
[BlackElo "2636"]
[Annotator "TA"]
[PlyCount "33"]
[EventDate "2022.06.09"]
[EventType "team-tourn"]
[EventCountry "FRA"]
[SourceTitle "playchess.com"]
[Source "ChessBase"]
[SourceQuality "1"]
[TimeControl "40/5400+30:1800+30"]

{[%evp 13,17,19,16,27,58,0]} 1. d4 {[%emt 0:00:04]} Nf6 {[%emt 0:00:12]} 2. c4 {[%emt 0:00:07]} g6 {[%emt 0:00:03]} 3. Nc3 {[%emt 0:00:10]} d5 {[%emt 0:00:03]} 4. Bf4 {[%emt 0:00:07]} Bg7 {[%emt 0:00:33]} 5. e3 {[%emt 0:00:07]} c5 {[%emt 0:00:27]} 6. dxc5 {[%emt 0:00:13]} Qa5 {[%emt 0:00:10]} 7. Rc1 {[%emt 0:00:20]} O-O {[%emt 0:00:55]} 8. cxd5 {[%emt 0:06:07] D83: Grünfeld: 4 Bf4 Bg7 5 e3 0-0.} Nbd7 $1 {[%emt 0:01:05][%mdl 4] is now more promising than 8...Ne4.} 9. Nf3 {[%emt 0:24:16] [#]} (9. f3 $14) {Predecessor:} 9... Ne4 $146 10. Be2 Nxc3 11. bxc3 Nxc5 12. Be5 Bxe5 13. Nxe5 Qxa2 14. O-O Qa5 15. Bc4 Nd7 16. f4 Nxe5 17. fxe5 {½-½ (32) Korchmar,V (2424)-Michalik,P (2573) Riga 2019} 1/2-1/2

[Event "FRA-ch Teams Top 16-A 2022"]
[Site "Chartres"]
[Date "2022.06.15"]
[Round "7.3"]
[White "Rodshtein, Maxim"]
[Black "Nanu, Costica-Ciprian"]
[Result "1/2-1/2"]
[ECO "D12"]
[WhiteElo "2588"]
[BlackElo "2520"]
[Annotator "TA"]
[PlyCount "60"]
[EventDate "2022.06.09"]
[EventType "team-tourn"]
[EventCountry "FRA"]
[SourceTitle "playchess.com"]
[Source "ChessBase"]
[SourceQuality "1"]
[TimeControl "40/5400+30:1800+30"]

{[%evp 15,60,25,35,22,21,16,37,14,19,0,8,2,21,4,31,14,63,21,33,25,31,35,35,6,20,0,10,6,4,11,17,0,0,0,0,0,0,0,0,0,0,-16,-8,-18,-21,-102,0]} 1. d4 {[%emt 0:00:11]} d5 {[%emt 0:00:43]} 2. Nf3 {[%emt 0:00:56]} Nf6 {[%emt 0:00:09]} 3. c4 {[%emt 0:00:16]} c6 {[%emt 0:01:15]} 4. e3 {[%emt 0:02:25]} Bf5 {[%emt 0:01:00]} 5. Nc3 {[%emt 0:00:14]} e6 {[%emt 0:00:06]} 6. Nh4 {[%emt 0:00:09]} Be4 {[%emt 0:01:59]} 7. f3 {[%emt 0:00:20]} Bg6 {[%emt 0:00:04]} 8. Qb3 {[%emt 0:00:20]} Qc7 {[%emt 0:00:07]} 9. Bd2 {[%emt 0:00:35] D12: Slav Defence: 3 Nf3 Nf6 4 e3 Bf5.} Be7 {[%emt 0:01:30]} 10. Nxg6 {[%emt 0:04:57]} hxg6 {[%emt 0:00:26]} 11. O-O-O {[%emt 0:00:13] White is slightly better.} dxc4 {[%emt 0:03:19]} 12. Qxc4 {[%emt 0:00:05]} Nbd7 {[%emt 0:03:01] [#]} 13. e4 $146 {[%emt 0:06:31]} ({Predecessor:} 13. h3 a5 14. e4 O-O 15. Kb1 Rfc8 16. Rc1 Qd8 17. g4 b5 18. Qe2 Nb6 19. e5 {1-0 (57) Roselli Mailhe,B (2430)-Sosa,N (2078) St Croix 2018}) 13... Nb6 {[%emt 0:01:56]} 14. Qb3 {[%emt 0:02:11]} Rd8 {[%emt 0:09:57]} 15. Ne2 {[%emt 0:22:29]} Nfd7 {[%emt 0:11:55]} ({Resist} 15... Rxh2 16. Bf4 Qxf4+ 17. Nxf4 $16) (15... e5 $11 {was preferrable.}) 16. Kb1 {[%emt 0:08:03]} e5 $1 {[%emt 0:03:41]} 17. dxe5 {[%emt 0:20:05]} Nxe5 {[%emt 0:00:43]} 18. Nc1 {[%emt 0:01:53]} g5 {[%emt 0:01:50]} 19. Be2 {[%emt 0:04:06]} c5 {[%emt 0:20:57]} 20. Bc3 {[%emt 0:05:51]} Rxd1 {[%emt 0:01:16]} 21. Rxd1 {[%emt 0:04:18]} O-O $1 {[%emt 0:04:48]} 22. g3 {[%emt 0:02:26]} (22. a4 {looks sharper.} Nc6 23. g3 Rd8 24. a5) 22... Nc6 {[%emt 0:01:47]} 23. Qc2 {[%emt 0:05:07]} Rd8 {[%emt 0:01:22]} 24. Rxd8+ {[%emt 0:01:24]} Qxd8 {[%emt 0:00:08]} 25. Qd1 {[%emt 0:00:19]} Qc7 {[%emt 0:03:45]} 26. Nd3 {[%emt 0:03:00]} Nd7 {[%emt 0:03:40]} 27. Ne1 {[%emt 0:05:36]} Bf6 28. Bxf6 Nxf6 29. Nc2 {[%emt 0:01:00]} Qe5 30. Ne1 {[%emt 0:00:30] [#]} (30. Qd3 $11) 30... Qc7 {[%emt 0:24:06] Weighted Error Value: White=0.17 (very precise) /Black=0.03 (flawless)} (30... g4 $1 $17 31. Bd3 (31. Nd3 Qd4 $17) 31... Qe6) 1/2-1/2